[Event "Titled Tuesday Blitz May 10 Early 2022"]
[White "Csonka, Balazs"]
[Black "Zia, Tahsin Tajwar"]
[WhiteFideId "742910"]
[BlackFideId "10211888"]
[WhiteElo "2404"]
[BlackElo "1800"]
[Result "1-0"]
[Round "03"]
[TimeControl "180+1"]
[Date "2022.05.11"]
[WhiteClock "0:00:28"]
[BlackClock "0:00:43"]

1. e4 {[%clk 0:03:00]}  c6 {[%clk 0:02:53]} 2. Ne2 {[%clk 0:02:54]}  d5 {[%clk 0:02:50]} 3. e5 {[%clk 0:02:54]}  c5 {[%clk 0:02:38]} 4. d4 {[%clk 0:02:54]}  Nc6 {[%clk 0:02:32]} 5. c3 {[%clk 0:02:53]}  Bg4 {[%clk 0:02:27]} 6. f3 {[%clk 0:02:39]}  Bf5 {[%clk 0:02:26]} 7. dxc5 {[%clk 0:02:39]}  e6 {[%clk 0:02:24]} 8. Be3 {[%clk 0:02:31]}  Nxe5 {[%clk 0:02:16]} 9. Nd4 {[%clk 0:02:23]}  Bg6 {[%clk 0:01:59]} 10. Qa4+ {[%clk 0:01:43]}  Nd7 {[%clk 0:01:55]} 11. c6 {[%clk 0:01:44]}  Nb6 {[%clk 0:01:33]} 12. cxb7+ {[%clk 0:01:40]}  Nxa4 {[%clk 0:01:33]} 13. Bb5+ {[%clk 0:01:41]}  Ke7 {[%clk 0:01:31]} 14. Nc6+ {[%clk 0:01:41]}  Kf6 {[%clk 0:01:31]} 15. Bd4+ {[%clk 0:01:19]}  Kg5 {[%clk 0:01:24]} 16. h4+ {[%clk 0:01:12]}  Kf4 {[%clk 0:01:22]} 17. Be5+ {[%clk 0:00:45]}  Ke3 {[%clk 0:01:20]} 18. Nd2 {[%clk 0:00:43]}  Bd3 {[%clk 0:01:08]} 19. Bd4+ {[%clk 0:00:37]}  Kf4 {[%clk 0:01:07]} 20. Bxd3 {[%clk 0:00:38]}  Qe8 {[%clk 0:00:55]} 21. Kf2 {[%clk 0:00:32]}  f5 {[%clk 0:00:43]} 22. g3# {[%clk 0:00:28]} 1-0


[Site "https://www.chess.com"]

[Event "Titled Tuesday Blitz May 10 Early 2022"]
[White "Czerw, Dawid"]
[Black "Gallego Alcaraz, Andres Felipe"]
[WhiteFideId "1145746"]
[BlackFideId "4402669"]
[WhiteElo "2125"]
[BlackElo "2340"]
[Result "0-1"]
[Round "03"]
[TimeControl "180+1"]
[Date "2022.05.11"]
[WhiteClock "0:00:12"]
[BlackClock "0:00:59"]

1. d4 {[%clk 0:03:00]}  Nf6 {[%clk 0:02:59]} 2. c4 {[%clk 0:03:01]}  g6 {[%clk 0:02:59]} 3. Nc3 {[%clk 0:03:01]}  d5 {[%clk 0:02:59]} 4. cxd5 {[%clk 0:02:59]}  Nxd5 {[%clk 0:02:58]} 5. e4 {[%clk 0:02:59]}  Nxc3 {[%clk 0:02:52]} 6. bxc3 {[%clk 0:03:00]}  c5 {[%clk 0:02:53]} 7. Bc4 {[%clk 0:02:59]}  Bg7 {[%clk 0:02:53]} 8. Ne2 {[%clk 0:02:59]}  O-O {[%clk 0:02:53]} 9. O-O {[%clk 0:02:59]}  Nc6 {[%clk 0:02:54]} 10. Be3 {[%clk 0:03:00]}  b6 {[%clk 0:02:55]} 11. Qd2 {[%clk 0:02:41]}  Bb7 {[%clk 0:02:55]} 12. Bh6 {[%clk 0:02:32]}  Bxh6 {[%clk 0:02:35]} 13. Qxh6 {[%clk 0:02:32]}  cxd4 {[%clk 0:02:35]} 14. Rad1 {[%clk 0:02:02]}  Na5 {[%clk 0:02:21]} 15. Rd3 {[%clk 0:01:37]}  Bc8 {[%clk 0:01:30]} 16. Bd5 {[%clk 0:01:26]}  Rb8 {[%clk 0:01:30]} 17. Nxd4 {[%clk 0:01:21]}  e6 {[%clk 0:01:28]} 18. Bb3 {[%clk 0:01:00]}  Qf6 {[%clk 0:01:19]} 19. f4 {[%clk 0:00:49]}  Qg7 {[%clk 0:01:15]} 20. Qh4 {[%clk 0:00:48]}  Ba6 {[%clk 0:01:14]} 21. Rh3 {[%clk 0:00:38]}  Bxf1 {[%clk 0:01:14]} 22. Kxf1 {[%clk 0:00:38]}  Rbc8 {[%clk 0:01:14]} 23. e5 {[%clk 0:00:35]}  Nxb3 {[%clk 0:01:12]} 24. axb3 {[%clk 0:00:34]}  Rfd8 {[%clk 0:01:12]} 25. Ke2 {[%clk 0:00:28]}  h6 {[%clk 0:01:08]} 26. Nc6 {[%clk 0:00:25]}  g5 {[%clk 0:01:01]} 27. Ne7+ {[%clk 0:00:14]}  Kf8 {[%clk 0:00:59]} 28. fxg5 {[%clk 0:00:15]}  Qxe5+ {[%clk 0:00:58]} 29. Kf2 {[%clk 0:00:12]}  Kxe7 {[%clk 0:00:57]} 30. gxh6+ {[%clk 0:00:12]}  Qf6+ {[%clk 0:00:58]} 31. Qxf6+ {[%clk 0:00:12]}  Kxf6 {[%clk 0:00:59]} 0-1


[Site "https://www.chess.com"]

[Event "Titled Tuesday Blitz May 10 Early 2022"]
[White "D`Arruda, Ricardo D."]
[Black "Jaracz, Pawel"]
[WhiteFideId "100692"]
[BlackFideId "1102222"]
[WhiteElo "2457"]
[BlackElo "2429"]
[Result "0-1"]
[Round "03"]
[TimeControl "180+1"]
[Date "2022.05.11"]
[WhiteClock "0:00:43"]
[BlackClock "0:01:57"]

1. d4 {[%clk 0:02:59]}  Nf6 {[%clk 0:02:59]} 2. Nf3 {[%clk 0:02:58]}  e6 {[%clk 0:02:59]} 3. c3 {[%clk 0:02:57]}  b6 {[%clk 0:02:58]} 4. g3 {[%clk 0:02:56]}  Bb7 {[%clk 0:02:58]} 5. Bg2 {[%clk 0:02:57]}  g6 {[%clk 0:02:56]} 6. O-O {[%clk 0:02:57]}  Bg7 {[%clk 0:02:56]} 7. Nbd2 {[%clk 0:02:57]}  O-O {[%clk 0:02:56]} 8. Re1 {[%clk 0:02:57]}  d6 {[%clk 0:02:56]} 9. e4 {[%clk 0:02:56]}  Nbd7 {[%clk 0:02:56]} 10. Qe2 {[%clk 0:02:56]}  e5 {[%clk 0:02:56]} 11. dxe5 {[%clk 0:02:50]}  dxe5 {[%clk 0:02:54]} 12. a4 {[%clk 0:02:44]}  a5 {[%clk 0:02:53]} 13. Nh4 {[%clk 0:02:19]}  Nc5 {[%clk 0:02:50]} 14. Bf1 {[%clk 0:02:18]}  Nfxe4 {[%clk 0:02:47]} 15. Nxe4 {[%clk 0:02:18]}  Nxe4 {[%clk 0:02:43]} 16. Bg2 {[%clk 0:02:10]}  f5 {[%clk 0:02:41]} 17. Rd1 {[%clk 0:02:01]}  Qe7 {[%clk 0:02:40]} 18. Nf3 {[%clk 0:02:00]}  Nc5 {[%clk 0:02:37]} 19. Ng5 {[%clk 0:01:51]}  e4 {[%clk 0:02:33]} 20. Be3 {[%clk 0:01:41]}  Ba6 {[%clk 0:02:17]} 21. Bxc5 {[%clk 0:01:36]}  Qxc5 {[%clk 0:02:15]} 22. Qe3 {[%clk 0:01:23]}  Qxe3 {[%clk 0:02:12]} 23. fxe3 {[%clk 0:01:24]}  Bh6 {[%clk 0:02:12]} 24. h4 {[%clk 0:01:24]}  Rfd8 {[%clk 0:02:10]} 25. Kf2 {[%clk 0:01:15]}  Bc4 {[%clk 0:02:01]} 26. Bf1 {[%clk 0:01:05]}  Bb3 {[%clk 0:01:59]} 27. Rxd8+ {[%clk 0:00:59]}  Rxd8 {[%clk 0:02:00]} 28. Ke1 {[%clk 0:00:58]}  Bf8 {[%clk 0:01:58]} 29. c4 {[%clk 0:00:51]}  Bb4+ {[%clk 0:01:57]} 30. Kf2 {[%clk 0:00:49]}  Rd2+ {[%clk 0:01:57]} 31. Be2 {[%clk 0:00:43]}  Bxc4 {[%clk 0:01:57]} 0-1


[Site "https://www.chess.com"]

[Event "Titled Tuesday Blitz May 10 Early 2022"]
[White "Daneshvar, Bardiya"]
[Black "Abrahamyan, Tatev"]
[WhiteFideId "12576468"]
[BlackFideId "13301918"]
[WhiteElo "2330"]
[BlackElo "2352"]
[Result "1-0"]
[Round "03"]
[TimeControl "180+1"]
[Date "2022.05.11"]
[WhiteClock "0:00:57"]
[BlackClock "0:00:38"]

1. b3 {[%clk 0:03:00]}  e5 {[%clk 0:02:58]} 2. Bb2 {[%clk 0:02:59]}  Nc6 {[%clk 0:02:55]} 3. c4 {[%clk 0:02:58]}  Nf6 {[%clk 0:02:54]} 4. Nf3 {[%clk 0:02:58]}  d5 {[%clk 0:02:52]} 5. Nxe5 {[%clk 0:02:55]}  Nxe5 {[%clk 0:02:51]} 6. Bxe5 {[%clk 0:02:56]}  dxc4 {[%clk 0:02:50]} 7. bxc4 {[%clk 0:02:41]}  Be6 {[%clk 0:02:47]} 8. e3 {[%clk 0:02:39]}  Ng4 {[%clk 0:02:34]} 9. Bg3 {[%clk 0:02:31]}  Qf6 {[%clk 0:02:30]} 10. Nc3 {[%clk 0:02:28]}  c6 {[%clk 0:02:19]} 11. d4 {[%clk 0:02:18]}  Bb4 {[%clk 0:02:11]} 12. Qb3 {[%clk 0:02:12]}  Ba5 {[%clk 0:02:01]} 13. Qa3 {[%clk 0:02:05]}  b6 {[%clk 0:01:56]} 14. h3 {[%clk 0:02:00]}  c5 {[%clk 0:01:44]} 15. hxg4 {[%clk 0:01:47]}  cxd4 {[%clk 0:01:43]} 16. g5 {[%clk 0:01:36]}  Qxg5 {[%clk 0:01:20]} 17. exd4 {[%clk 0:01:35]}  O-O-O {[%clk 0:01:14]} 18. Be2 {[%clk 0:01:06]}  Rxd4 {[%clk 0:01:03]} 19. O-O {[%clk 0:01:05]}  h5 {[%clk 0:00:45]} 20. Nb5 {[%clk 0:01:01]}  Rd2 {[%clk 0:00:38]} 21. Qf3 {[%clk 0:00:57]} 1-0


[Site "https://www.chess.com"]

[Event "Titled Tuesday Blitz May 10 Early 2022"]
[White "Dardha, Daniel"]
[Black "Demchenko, Anton"]
[WhiteFideId "240990"]
[BlackFideId "4160258"]
[WhiteElo "2482"]
[BlackElo "2539"]
[Result "1-0"]
[Round "03"]
[TimeControl "180+1"]
[Date "2022.05.10"]
[WhiteClock "0:00:39"]
[BlackClock "0:00:01"]

1. e4 {[%clk 0:03:00]}  e5 {[%clk 0:02:59]} 2. d4 {[%clk 0:02:56]}  exd4 {[%clk 0:02:59]} 3. Qxd4 {[%clk 0:02:57]}  Nc6 {[%clk 0:02:59]} 4. Qc4 {[%clk 0:02:57]}  Nf6 {[%clk 0:02:51]} 5. Nc3 {[%clk 0:02:56]}  Be7 {[%clk 0:02:52]} 6. Bg5 {[%clk 0:02:55]}  O-O {[%clk 0:02:50]} 7. O-O-O {[%clk 0:02:55]}  h6 {[%clk 0:02:41]} 8. Bh4 {[%clk 0:02:54]}  d6 {[%clk 0:02:20]} 9. f4 {[%clk 0:02:54]}  Be6 {[%clk 0:02:04]} 10. Qe2 {[%clk 0:02:54]}  Qc8 {[%clk 0:01:43]} 11. Nf3 {[%clk 0:02:50]}  Re8 {[%clk 0:01:40]} 12. g4 {[%clk 0:02:33]}  Bxg4 {[%clk 0:01:38]} 13. Rg1 {[%clk 0:02:33]}  Nh5 {[%clk 0:01:21]} 14. Bxe7 {[%clk 0:02:25]}  Nxe7 {[%clk 0:01:22]} 15. f5 {[%clk 0:02:15]}  Nf6 {[%clk 0:01:22]} 16. Qf2 {[%clk 0:02:08]}  Kh8 {[%clk 0:01:09]} 17. Be2 {[%clk 0:01:54]}  Nc6 {[%clk 0:01:05]} 18. Qh4 {[%clk 0:01:50]}  Bxf3 {[%clk 0:00:57]} 19. Bxf3 {[%clk 0:01:35]}  Nh7 {[%clk 0:00:47]} 20. Nd5 {[%clk 0:01:25]}  f6 {[%clk 0:00:08]} 21. Qh5 {[%clk 0:01:17]}  Ne5 {[%clk 0:00:06]} 22. Rg3 {[%clk 0:01:10]}  c6 {[%clk 0:00:05]} 23. Rdg1 {[%clk 0:01:09]}  Ng5 {[%clk 0:00:01]} 24. Nxf6 {[%clk 0:01:07]}  Nexf3 {[%clk 0:00:01]} 25. Qg6 {[%clk 0:00:44]}  Re7 {[%clk 0:00:01]} 26. Rxg5 {[%clk 0:00:39]}  Nxg5 {[%clk 0:00:01]} 27. Rxg5 {[%clk 0:00:39]}  gxf6 {[%clk 0:00:01]} 28. Qxh6+ {[%clk 0:00:39]} 1-0


[Site "https://www.chess.com"]

[Event "Titled Tuesday Blitz May 10 Early 2022"]
[White "Devaev, Alexander"]
[Black "Cunha, Lucas Aguiar"]
[WhiteFideId "4169395"]
[BlackFideId "2125404"]
[WhiteElo "2185"]
[BlackElo "2361"]
[Result "0-1"]
[Round "03"]
[TimeControl "180+1"]
[Date "2022.05.11"]
[WhiteClock "0:00:09"]
[BlackClock "0:00:06"]

1. d4 {[%clk 0:03:00]}  Nf6 {[%clk 0:02:51]} 2. c4 {[%clk 0:03:01]}  e6 {[%clk 0:02:51]} 3. Nf3 {[%clk 0:03:01]}  b6 {[%clk 0:02:51]} 4. a3 {[%clk 0:03:01]}  Ba6 {[%clk 0:02:51]} 5. Qc2 {[%clk 0:03:01]}  Bb7 {[%clk 0:02:51]} 6. Nc3 {[%clk 0:02:58]}  d5 {[%clk 0:02:47]} 7. Bg5 {[%clk 0:02:57]}  Be7 {[%clk 0:02:45]} 8. Bxf6 {[%clk 0:02:58]}  Bxf6 {[%clk 0:02:46]} 9. cxd5 {[%clk 0:02:58]}  exd5 {[%clk 0:02:46]} 10. Rd1 {[%clk 0:02:59]}  O-O {[%clk 0:02:46]} 11. g3 {[%clk 0:03:00]}  Re8 {[%clk 0:02:44]} 12. Bg2 {[%clk 0:03:00]}  Nd7 {[%clk 0:02:44]} 13. O-O {[%clk 0:03:01]}  Nf8 {[%clk 0:02:45]} 14. Rfe1 {[%clk 0:03:00]}  Ne6 {[%clk 0:02:44]} 15. e3 {[%clk 0:02:55]}  Rc8 {[%clk 0:02:43]} 16. Ne5 {[%clk 0:02:40]}  g6 {[%clk 0:02:25]} 17. Qb3 {[%clk 0:02:27]}  c6 {[%clk 0:02:03]} 18. f4 {[%clk 0:02:22]}  Ng7 {[%clk 0:01:35]} 19. e4 {[%clk 0:02:16]}  Bxe5 {[%clk 0:01:28]} 20. fxe5 {[%clk 0:02:13]}  dxe4 {[%clk 0:01:26]} 21. Nxe4 {[%clk 0:02:12]}  Re7 {[%clk 0:01:21]} 22. Nd6 {[%clk 0:01:24]}  Rcc7 {[%clk 0:00:55]} 23. Nxb7 {[%clk 0:01:23]}  Rxb7 {[%clk 0:00:56]} 24. Bxc6 {[%clk 0:01:24]}  Rbc7 {[%clk 0:00:57]} 25. d5 {[%clk 0:01:15]}  Nf5 {[%clk 0:00:51]} 26. Qf3 {[%clk 0:00:47]}  Rc8 {[%clk 0:00:47]} 27. d6 {[%clk 0:00:42]}  Re6 {[%clk 0:00:43]} 28. Bd5 {[%clk 0:00:43]}  Re8 {[%clk 0:00:35]} 29. g4 {[%clk 0:00:24]}  Nh6 {[%clk 0:00:30]} 30. Bxf7+ {[%clk 0:00:12]}  Nxf7 {[%clk 0:00:28]} 31. d7 {[%clk 0:00:12]}  Ng5 {[%clk 0:00:25]} 32. dxc8=Q {[%clk 0:00:10]}  Nxf3+ {[%clk 0:00:23]} 33. Kf2 {[%clk 0:00:10]}  Qxc8 {[%clk 0:00:15]} 34. Kxf3 {[%clk 0:00:11]}  Qc6+ {[%clk 0:00:06]} 35. Kg3 {[%clk 0:00:09]}  Qc2 {[%clk 0:00:06]} 0-1


[Site "https://www.chess.com"]

[Event "Titled Tuesday Blitz May 10 Early 2022"]
[White "Duarte, Leonardo"]
[Black "Marin Ramirez, Gerardo"]
[WhiteFideId "110582"]
[BlackFideId "3901068"]
[WhiteElo "2217"]
[BlackElo "1920"]
[Result "0-1"]
[Round "03"]
[TimeControl "180+1"]
[Date "2022.05.11"]
[WhiteClock "0:00:03"]
[BlackClock "0:00:18"]

1. e4 {[%clk 0:02:56]}  c5 {[%clk 0:02:42]} 2. c3 {[%clk 0:02:55]}  d5 {[%clk 0:02:41]} 3. exd5 {[%clk 0:02:55]}  Qxd5 {[%clk 0:02:41]} 4. d4 {[%clk 0:02:56]}  Nf6 {[%clk 0:02:40]} 5. Nf3 {[%clk 0:02:55]}  Bg4 {[%clk 0:02:40]} 6. Be2 {[%clk 0:02:55]}  e6 {[%clk 0:02:38]} 7. O-O {[%clk 0:02:53]}  Nc6 {[%clk 0:02:37]} 8. dxc5 {[%clk 0:02:44]}  Bxc5 {[%clk 0:02:35]} 9. Na3 {[%clk 0:02:23]}  O-O {[%clk 0:02:33]} 10. Nb5 {[%clk 0:02:23]}  Rac8 {[%clk 0:02:29]} 11. Bf4 {[%clk 0:02:13]}  a6 {[%clk 0:02:24]} 12. Nd6 {[%clk 0:02:05]}  Bxd6 {[%clk 0:02:23]} 13. Bxd6 {[%clk 0:02:06]}  Rfd8 {[%clk 0:02:20]} 14. Qxd5 {[%clk 0:02:02]}  Nxd5 {[%clk 0:02:10]} 15. Bg3 {[%clk 0:02:02]}  Nf6 {[%clk 0:02:05]} 16. Rfd1 {[%clk 0:02:00]}  Ne4 {[%clk 0:02:03]} 17. Bf4 {[%clk 0:01:57]}  e5 {[%clk 0:01:54]} 18. Be3 {[%clk 0:01:55]}  Nf6 {[%clk 0:01:34]} 19. h3 {[%clk 0:01:54]}  Bh5 {[%clk 0:01:30]} 20. g4 {[%clk 0:01:54]}  Bg6 {[%clk 0:01:30]} 21. Nh4 {[%clk 0:01:55]}  Bc2 {[%clk 0:01:28]} 22. Rxd8+ {[%clk 0:01:49]}  Rxd8 {[%clk 0:01:27]} 23. Rc1 {[%clk 0:01:50]}  Bd3 {[%clk 0:01:22]} 24. Bf3 {[%clk 0:01:39]}  e4 {[%clk 0:01:21]} 25. Bg2 {[%clk 0:01:39]}  g6 {[%clk 0:01:18]} 26. Rd1 {[%clk 0:01:31]}  Nd5 {[%clk 0:01:16]} 27. Bc1 {[%clk 0:01:26]}  Ne5 {[%clk 0:01:03]} 28. Re1 {[%clk 0:00:41]}  f6 {[%clk 0:00:41]} 29. Bxe4 {[%clk 0:00:32]}  Bxe4 {[%clk 0:00:39]} 30. Rxe4 {[%clk 0:00:31]}  Nxc3 {[%clk 0:00:38]} 31. Rxe5 {[%clk 0:00:20]}  fxe5 {[%clk 0:00:35]} 32. Bg5 {[%clk 0:00:15]}  Rd1+ {[%clk 0:00:33]} 33. Kg2 {[%clk 0:00:16]}  Nxa2 {[%clk 0:00:33]} 34. Nf3 {[%clk 0:00:15]}  Rd5 {[%clk 0:00:31]} 35. Be3 {[%clk 0:00:13]}  Rb5 {[%clk 0:00:31]} 36. Ng5 {[%clk 0:00:11]}  Rxb2 {[%clk 0:00:29]} 37. Ne4 {[%clk 0:00:11]}  Rb4 {[%clk 0:00:28]} 38. Nf6+ {[%clk 0:00:11]}  Kf7 {[%clk 0:00:26]} 39. g5 {[%clk 0:00:10]}  a5 {[%clk 0:00:26]} 40. h4 {[%clk 0:00:10]}  a4 {[%clk 0:00:26]} 41. h5 {[%clk 0:00:10]}  a3 {[%clk 0:00:26]} 42. Nd7 {[%clk 0:00:10]}  gxh5 {[%clk 0:00:23]} 43. Nxe5+ {[%clk 0:00:09]}  Ke6 {[%clk 0:00:23]} 44. Nd3 {[%clk 0:00:08]}  Rb1 {[%clk 0:00:21]} 45. f4 {[%clk 0:00:05]}  Nc3 {[%clk 0:00:20]} 46. Kf3 {[%clk 0:00:03]}  Kf5 {[%clk 0:00:18]} 0-1


[Site "https://www.chess.com"]

[Event "Titled Tuesday Blitz May 10 Early 2022"]
[White "Dubov, Daniil"]
[Black "Mitrabha, Guha"]
[WhiteFideId "24126055"]
[BlackFideId "5057000"]
[WhiteElo "2791"]
[BlackElo "2468"]
[Result "0-1"]
[Round "03"]
[TimeControl "180+1"]
[Date "2022.05.10"]
[WhiteClock "0:00:28"]
[BlackClock "0:00:41"]

1. d4 {[%clk 0:03:00]}  Nf6 {[%clk 0:02:59]} 2. Nf3 {[%clk 0:03:01]}  b6 {[%clk 0:02:57]} 3. c4 {[%clk 0:03:00]}  Bb7 {[%clk 0:02:57]} 4. g3 {[%clk 0:02:59]}  g6 {[%clk 0:02:56]} 5. Bg2 {[%clk 0:02:59]}  Bg7 {[%clk 0:02:56]} 6. O-O {[%clk 0:03:00]}  O-O {[%clk 0:02:57]} 7. d5 {[%clk 0:03:00]}  a5 {[%clk 0:02:54]} 8. Nc3 {[%clk 0:02:59]}  Na6 {[%clk 0:02:55]} 9. e4 {[%clk 0:02:57]}  e6 {[%clk 0:02:55]} 10. Re1 {[%clk 0:02:54]}  Nc5 {[%clk 0:02:54]} 11. e5 {[%clk 0:02:48]}  Ne8 {[%clk 0:02:53]} 12. Bg5 {[%clk 0:02:48]}  f6 {[%clk 0:02:52]} 13. exf6 {[%clk 0:02:47]}  Bxf6 {[%clk 0:02:46]} 14. Qd2 {[%clk 0:02:44]}  Nd6 {[%clk 0:02:44]} 15. b3 {[%clk 0:02:28]}  Bxc3 {[%clk 0:02:39]} 16. Qxc3 {[%clk 0:02:24]}  Rxf3 {[%clk 0:02:39]} 17. Bxf3 {[%clk 0:01:54]}  Qxg5 {[%clk 0:02:38]} 18. dxe6 {[%clk 0:01:55]}  Nxe6 {[%clk 0:02:17]} 19. Bxb7 {[%clk 0:01:47]}  Nxb7 {[%clk 0:02:17]} 20. Qf3 {[%clk 0:01:48]}  Rb8 {[%clk 0:02:15]} 21. h4 {[%clk 0:01:45]}  Qf5 {[%clk 0:02:10]} 22. Qxf5 {[%clk 0:01:33]}  gxf5 {[%clk 0:02:10]} 23. Re5 {[%clk 0:01:34]}  Nd6 {[%clk 0:02:10]} 24. Rae1 {[%clk 0:01:34]}  Kf7 {[%clk 0:02:10]} 25. Kg2 {[%clk 0:01:33]}  Kf6 {[%clk 0:02:10]} 26. Rd5 {[%clk 0:01:33]}  Nc5 {[%clk 0:02:03]} 27. Kf3 {[%clk 0:01:30]}  Ra8 {[%clk 0:02:01]} 28. g4 {[%clk 0:01:16]}  fxg4+ {[%clk 0:01:58]} 29. Kxg4 {[%clk 0:01:17]}  Ne6 {[%clk 0:01:55]} 30. Rh5 {[%clk 0:01:04]}  Rg8+ {[%clk 0:01:44]} 31. Kf3 {[%clk 0:01:04]}  Rg7 {[%clk 0:01:14]} 32. Rd1 {[%clk 0:00:51]}  Rf7 {[%clk 0:01:01]} 33. Ke3 {[%clk 0:00:41]}  Nf5+ {[%clk 0:00:59]} 34. Ke4 {[%clk 0:00:39]}  Kg6 {[%clk 0:00:49]} 35. Rxf5 {[%clk 0:00:32]}  Rxf5 {[%clk 0:00:48]} 36. Rg1+ {[%clk 0:00:33]}  Kf6 {[%clk 0:00:47]} 37. f3 {[%clk 0:00:34]}  Rf4+ {[%clk 0:00:47]} 38. Ke3 {[%clk 0:00:35]}  Rxh4 {[%clk 0:00:47]} 39. Rg2 {[%clk 0:00:35]}  Rh3 {[%clk 0:00:47]} 40. Rg8 {[%clk 0:00:32]}  h5 {[%clk 0:00:44]} 41. Rh8 {[%clk 0:00:31]}  h4 {[%clk 0:00:43]} 42. Ke4 {[%clk 0:00:31]}  Rh1 {[%clk 0:00:42]} 43. f4 {[%clk 0:00:30]}  h3 {[%clk 0:00:42]} 44. Rh6+ {[%clk 0:00:27]}  Kg7 {[%clk 0:00:41]} 45. Rh4 {[%clk 0:00:27]}  h2 {[%clk 0:00:41]} 46. Kf5 {[%clk 0:00:28]}  Nd4+ {[%clk 0:00:41]} 0-1


[Site "https://www.chess.com"]

[Event "Titled Tuesday Blitz May 10 Early 2022"]
[White "Estrada Nieto, Julian"]
[Black "Maksimenko, Viktor"]
[WhiteFideId "5101018"]
[BlackFideId "13710478"]
[WhiteElo "2252"]
[BlackElo "2269"]
[Result "0-1"]
[Round "03"]
[TimeControl "180+1"]
[Date "2022.05.11"]
[WhiteClock "0:01:20"]
[BlackClock "0:01:28"]

1. e4 {[%clk 0:03:00]}  c6 {[%clk 0:02:43]} 2. d4 {[%clk 0:03:00]}  d5 {[%clk 0:02:44]} 3. exd5 {[%clk 0:03:00]}  cxd5 {[%clk 0:02:45]} 4. Nf3 {[%clk 0:02:57]}  Nc6 {[%clk 0:02:44]} 5. Bf4 {[%clk 0:02:56]}  Bg4 {[%clk 0:02:43]} 6. c3 {[%clk 0:02:55]}  e6 {[%clk 0:02:43]} 7. Bd3 {[%clk 0:02:55]}  Nf6 {[%clk 0:02:42]} 8. Nbd2 {[%clk 0:02:53]}  Bd6 {[%clk 0:02:42]} 9. Bxd6 {[%clk 0:02:53]}  Qxd6 {[%clk 0:02:43]} 10. Qb3 {[%clk 0:02:53]}  Qc7 {[%clk 0:02:31]} 11. O-O {[%clk 0:02:48]}  O-O {[%clk 0:02:31]} 12. Rfe1 {[%clk 0:02:45]}  Bh5 {[%clk 0:02:31]} 13. Ne5 {[%clk 0:02:45]}  Nxe5 {[%clk 0:02:29]} 14. Rxe5 {[%clk 0:02:45]}  Bg6 {[%clk 0:02:28]} 15. Bxg6 {[%clk 0:02:44]}  hxg6 {[%clk 0:02:29]} 16. g3 {[%clk 0:02:40]}  Rab8 {[%clk 0:02:28]} 17. a4 {[%clk 0:02:39]}  Rfc8 {[%clk 0:02:25]} 18. Qd1 {[%clk 0:02:29]}  b5 {[%clk 0:02:17]} 19. axb5 {[%clk 0:02:28]}  Rxb5 {[%clk 0:02:17]} 20. Ra2 {[%clk 0:02:20]}  Rcb8 {[%clk 0:02:17]} 21. Qa1 {[%clk 0:02:19]}  a5 {[%clk 0:02:15]} 22. Re2 {[%clk 0:02:17]}  Ne8 {[%clk 0:01:58]} 23. Nf3 {[%clk 0:02:15]}  Nd6 {[%clk 0:01:56]} 24. Ne5 {[%clk 0:02:15]}  Ne4 {[%clk 0:01:39]} 25. Kg2 {[%clk 0:02:07]}  Nd6 {[%clk 0:01:32]} 26. Qc1 {[%clk 0:02:04]}  Nc4 {[%clk 0:01:32]} 27. Nxc4 {[%clk 0:01:47]}  Qxc4 {[%clk 0:01:33]} 28. b3 {[%clk 0:01:38]}  Rxb3 {[%clk 0:01:33]} 29. Re3 {[%clk 0:01:33]}  a4 {[%clk 0:01:32]} 30. Ra3 {[%clk 0:01:27]}  Rb1 {[%clk 0:01:31]} 31. Qc2 {[%clk 0:01:25]}  Qf1+ {[%clk 0:01:31]} 32. Kf3 {[%clk 0:01:24]}  Qh1+ {[%clk 0:01:30]} 33. Kg4 {[%clk 0:01:22]}  Qxh2 {[%clk 0:01:28]} 34. Qxa4 {[%clk 0:01:19]}  Qh5+ {[%clk 0:01:27]} 35. Kf4 {[%clk 0:01:20]}  Qf5# {[%clk 0:01:28]} 0-1


[Site "https://www.chess.com"]